[Event "LASS Vårturneringar 2018"]
[Site "Linköping, Sweden"]
[Date "2018.05.11"]
[Round "4.2"]
[White "Orci, Istvan"]
[Black "Olsson, Magnus"]
[Result "1/2-1/2"]
[TimeControl "90 min + 30 sec/move + 30 min/40 moves"]
[WhiteElo "1500"]
[BlackElo "1677"]

1. d4 {[%clk 01:30:54]} {[%emt 00:00:04]} d5 {[%clk 01:30:38]} {[%emt
00:00:23]} 2. Nf3 {[%clk 01:31:19]} {[%emt 00:00:06]} Nf6 {[%clk 01:31:04]}
{[%emt 00:00:04]} 3. e3 {[%clk 01:31:42]} {[%emt 00:00:06]} c5 {[%clk
01:31:06]} {[%emt 00:00:28]} 4. b3 {[%clk 01:30:42]} {[%emt 00:01:30]} e6
{[%clk 01:30:51]} {[%emt 00:00:45]} 5. Bd3 {[%clk 01:30:46]} {[%emt 00:00:27]}
Nc6 {[%clk 01:30:58]} {[%emt 00:00:23]} 6. c3 {[%clk 01:29:20]} {[%emt
00:01:55]} b6 {[%clk 01:30:42]} {[%emt 00:00:47]} 7. Nbd2 {[%clk 01:21:41]}
{[%emt 00:08:08]} cxd4 {[%clk 01:29:12]} {[%emt 00:02:00]} 8. cxd4 {[%clk
01:16:57]} {[%emt 00:05:13]} Bd6 {[%clk 01:29:03]} {[%emt 00:00:39]} 9. Bb5
{[%clk 01:14:35]} {[%emt 00:02:51]} Bd7 {[%clk 01:28:17]} {[%emt 00:01:17]} 10.
Bxc6 {[%clk 01:11:14]} {[%emt 00:03:50]} Bxc6 {[%clk 01:26:08]} {[%emt
00:02:41]} 11. O-O {[%clk 01:11:15]} {[%emt 00:00:27]} Rc8 {[%clk 01:25:21]}
{[%emt 00:01:17]} 12. Bb2 {[%clk 01:10:49]} {[%emt 00:00:56]} O-O {[%clk
01:25:09]} {[%emt 00:00:43]} 13. a4 {[%clk 01:06:06]} {[%emt 00:05:12]} Bb7
{[%clk 01:23:56]} {[%emt 00:01:44]} 14. Rc1 {[%clk 01:04:30]} {[%emt 00:02:06]}
Qe7 {[%clk 01:22:10]} {[%emt 00:02:14]} 15. Rxc8 {[%clk 00:52:53]} {[%emt
00:12:07]} Rxc8 {[%clk 01:22:03]} {[%emt 00:00:38]} 16. Qa1 {[%clk 00:52:36]}
{[%emt 00:00:47]} a5 {[%clk 01:17:47]} {[%emt 00:04:47]} 17. Rc1 {[%clk
00:49:11]} {[%emt 00:03:53]} Rc7 {[%clk 01:14:15]} {[%emt 00:04:03]} 18. Rxc7
{[%clk 00:47:44]} {[%emt 00:01:56]} Qxc7 {[%clk 01:13:32]} {[%emt 00:01:12]} 19.
Qc1 {[%clk 00:45:51]} {[%emt 00:02:23]} Kf8 {[%clk 01:12:48]} {[%emt 00:01:14]}
1/2-1/2

[Event "LASS Vårturneringar 2018"]
[Site "Linköping, Sweden"]
[Date "2018.05.11"]
[Round "4.4"]
[White "Wahlund, Max"]
[Black "Tiger-Norqvist, Axel"]
[Result "0-1"]
[TimeControl "90 min + 30 sec/move + 30 min/40 moves"]
[WhiteElo "2097"]
[BlackElo "2146"]

1. d4 {[%clk 01:30:57]} {[%emt 00:00:02]} Nf6 {[%clk 01:30:54]} {[%emt
00:00:07]} 2. c4 {[%clk 01:31:24]} {[%emt 00:00:03]} g6 {[%clk 01:31:16]}
{[%emt 00:00:08]} 3. Nc3 {[%clk 01:31:50]} {[%emt 00:00:04]} Bg7 {[%clk
01:31:38]} {[%emt 00:00:08]} 4. e4 {[%clk 01:32:16]} {[%emt 00:00:04]} d6
{[%clk 01:32:00]} {[%emt 00:00:07]} 5. Nf3 {[%clk 01:32:41]} {[%emt 00:00:04]}
O-O {[%clk 01:32:19]} {[%emt 00:00:11]} 6. Be2 {[%clk 01:33:08]} {[%emt
00:00:03]} e5 {[%clk 01:32:32]} {[%emt 00:00:18]} 7. dxe5 {[%clk 01:33:35]}
{[%emt 00:00:04]} dxe5 {[%clk 01:32:54]} {[%emt 00:00:08]} 8. Qxd8 {[%clk
01:33:59]} {[%emt 00:00:05]} Rxd8 {[%clk 01:33:08]} {[%emt 00:00:16]} 9. Bg5
{[%clk 01:34:24]} {[%emt 00:00:05]} Re8 {[%clk 01:27:38]} {[%emt 00:06:01]} 10.
O-O-O {[%clk 01:34:48]} {[%emt 00:00:05]} h6 {[%clk 01:23:14]} {[%emt
00:04:54]} 11. Bxf6 {[%clk 01:26:59]} {[%emt 00:08:20]} Bxf6 {[%clk 01:23:22]}
{[%emt 00:00:21]} 12. Nb5 {[%clk 01:26:39]} {[%emt 00:00:49]} Na6 {[%clk
01:21:50]} {[%emt 00:02:03]} 13. a3 {[%clk 01:24:30]} {[%emt 00:02:40]} Be7
{[%clk 00:46:41]} {[%emt 00:35:39]} 14. Kc2 {[%clk 01:19:09]} {[%emt 00:05:50]}
c6 {[%clk 00:45:47]} {[%emt 00:01:24]} 15. Nd6 {[%clk 01:19:17]} {[%emt
00:00:22]} Bxd6 {[%clk 00:46:09]} {[%emt 00:00:08]} 16. Rxd6 {[%clk 01:19:45]}
{[%emt 00:00:02]} Nc5 {[%clk 00:46:22]} {[%emt 00:00:18]} 17. Bd3 {[%clk
01:17:22]} {[%emt 00:02:52]} Bg4 {[%clk 00:45:46]} {[%emt 00:01:06]} 18. Ne1
{[%clk 01:08:24]} {[%emt 00:09:28]} Rad8 {[%clk 00:43:37]} {[%emt 00:02:40]} 19.
Rxd8 {[%clk 01:08:49]} {[%emt 00:00:05]} Rxd8 {[%clk 00:44:02]} {[%emt
00:00:05]} 20. f3 {[%clk 01:09:08]} {[%emt 00:00:10]} Bc8 {[%clk 00:42:01]}
{[%emt 00:02:31]} 21. b4 {[%clk 01:09:04]} {[%emt 00:00:34]} Ne6 {[%clk
00:42:24]} {[%emt 00:00:08]} 22. c5 {[%clk 01:08:40]} {[%emt 00:00:55]} Nd4+
{[%clk 00:29:31]} {[%emt 00:13:22]} 23. Kc3 {[%clk 01:08:18]} {[%emt 00:00:51]}
b5 {[%clk 00:24:45]} {[%emt 00:05:16]} 24. cxb6 {[%clk 01:06:28]} {[%emt
00:02:20]} axb6 {[%clk 00:25:10]} {[%emt 00:00:06]} 25. Nc2 {[%clk 01:05:43]}
{[%emt 00:01:15]} Ne6 {[%clk 00:24:04]} {[%emt 00:01:35]} 26. g3 {[%clk
01:03:23]} {[%emt 00:02:50]} Ng5 {[%clk 00:24:01]} {[%emt 00:00:33]} 27. Rf1
{[%clk 01:02:11]} {[%emt 00:01:41]} Rxd3+ {[%clk 00:24:16]} {[%emt 00:00:16]}
0-1

[Event "LASS Vårturneringar 2018"]
[Site "Linköping, Sweden"]
[Date "2018.05.11"]
[Round "4.5"]
[White "Garner, Mårten"]
[Black "Olsson, Simon"]
[Result "1-0"]
[TimeControl "90 min + 30 sec/move + 30 min/40 moves"]
[WhiteElo "1872"]
[BlackElo "2110"]

1. d4 {[%clk 01:30:57]} {[%emt 00:00:02]} Nf6 {[%clk 01:30:59]} {[%emt
00:00:02]} 2. c4 {[%clk 01:30:41]} {[%emt 00:00:46]} Nc6 {[%clk 01:31:28]}
{[%emt 00:00:01]} 3. Nc3 {[%clk 01:31:04]} {[%emt 00:00:06]} e5 {[%clk
01:31:52]} {[%emt 00:00:06]} 4. d5 {[%clk 01:31:17]} {[%emt 00:00:17]} Ne7
{[%clk 01:32:21]} {[%emt 00:00:02]} 5. e4 {[%clk 01:31:22]} {[%emt 00:00:24]}
Ng6 {[%clk 01:32:45]} {[%emt 00:00:07]} 6. Nge2 {[%clk 01:31:10]} {[%emt
00:00:41]} Bc5 {[%clk 01:32:40]} {[%emt 00:00:37]} 7. f3 {[%clk 01:30:18]}
{[%emt 00:01:21]} c6 {[%clk 01:30:33]} {[%emt 00:02:38]} 8. a3 {[%clk
01:27:45]} {[%emt 00:03:03]} cxd5 {[%clk 01:29:36]} {[%emt 00:01:27]} 9. exd5
{[%clk 01:24:17]} {[%emt 00:03:57]} e4 {[%clk 01:29:06]} {[%emt 00:01:00]} 10.
Nxe4 {[%clk 01:23:08]} {[%emt 00:01:39]} Nxe4 {[%clk 01:29:28]} {[%emt
00:00:08]} 11. fxe4 {[%clk 01:23:28]} {[%emt 00:00:09]} Qf6 {[%clk 01:29:28]}
{[%emt 00:00:30]} 12. Qd3 {[%clk 01:19:50]} {[%emt 00:04:07]} Bf2+ {[%clk
01:15:08]} {[%emt 00:14:50]} 13. Kd1 {[%clk 01:19:02]} {[%emt 00:01:16]} Ne5
{[%clk 01:15:16]} {[%emt 00:00:24]} 14. Qc3 {[%clk 01:19:08]} {[%emt 00:00:23]}
d6 {[%clk 01:15:29]} {[%emt 00:00:18]} 15. h3 {[%clk 01:17:21]} {[%emt
00:02:16]} b5 {[%clk 01:10:43]} {[%emt 00:05:18]} 16. Bf4 {[%clk 01:05:14]}
{[%emt 00:12:36]} bxc4 {[%clk 01:05:04]} {[%emt 00:06:09]} 17. Bxe5 {[%clk
01:04:51]} {[%emt 00:00:53]} dxe5 {[%clk 01:04:46]} {[%emt 00:00:49]} 18. Qxc4
{[%clk 01:03:02]} {[%emt 00:02:18]} Bd7 {[%clk 01:01:50]} {[%emt 00:03:27]} 19.
Nc3 {[%clk 00:50:31]} {[%emt 00:12:59]} Rc8 {[%clk 01:00:44]} {[%emt 00:01:37]}
20. Qa6 {[%clk 00:50:07]} {[%emt 00:00:53]} Qd8 {[%clk 00:47:13]} {[%emt
00:14:02]} 21. Bb5 {[%clk 00:48:09]} {[%emt 00:02:25]} O-O {[%clk 00:47:40]}
{[%emt 00:00:06]} 22. Rc1 {[%clk 00:46:43]} {[%emt 00:01:54]} Bxb5 {[%clk
00:47:02]} {[%emt 00:01:10]} 23. Qxb5 {[%clk 00:45:04]} {[%emt 00:02:07]} Qg5
{[%clk 00:44:19]} {[%emt 00:03:14]} 24. g4 {[%clk 00:44:27]} {[%emt 00:01:06]}
Bd4 {[%clk 00:40:50]} {[%emt 00:04:01]} 25. Qd3 {[%clk 00:42:48]} {[%emt
00:02:07]} Rc7 {[%clk 00:36:56]} {[%emt 00:04:26]} 26. Rh2 {[%clk 00:38:35]}
{[%emt 00:04:40]} Rfc8 {[%clk 00:34:52]} {[%emt 00:02:36]} 27. Rcc2 {[%clk
00:38:10]} {[%emt 00:00:54]} h5 {[%clk 00:32:51]} {[%emt 00:02:31]} 28. Qf3
{[%clk 00:36:01]} {[%emt 00:02:39]} Bxc3 {[%clk 00:28:48]} {[%emt 00:04:35]} 29.
Rxc3 {[%clk 00:35:51]} {[%emt 00:00:39]} Rxc3 {[%clk 00:27:56]} {[%emt
00:01:21]} 30. bxc3 {[%clk 00:36:07]} {[%emt 00:00:13]} Qe7 {[%clk 00:26:02]}
{[%emt 00:02:24]} 31. gxh5 {[%clk 00:34:34]} {[%emt 00:02:03]} Qxa3 {[%clk
00:26:03]} {[%emt 00:00:30]} 32. Rc2 {[%clk 00:34:32]} {[%emt 00:00:31]} Rc4
{[%clk 00:16:50]} {[%emt 00:09:45]} 33. h6 {[%clk 00:27:05]} {[%emt 00:07:56]}
gxh6 {[%clk 00:12:13]} {[%emt 00:05:07]} 34. Qg3+ {[%clk 00:26:10]} {[%emt
00:01:24]} Kh7 {[%clk 00:11:02]} {[%emt 00:01:41]} 35. Qxe5 {[%clk 00:25:26]}
{[%emt 00:01:12]} Qa1+ {[%clk 00:10:24]} {[%emt 00:01:11]} 36. Kd2 {[%clk
00:25:05]} {[%emt 00:00:50]} Qf1 {[%clk 00:09:59]} {[%emt 00:00:56]} 37. Qf5
{[%clk 00:15:34]} {[%emt 00:10:01]} Qxf5 {[%clk 00:10:20]} {[%emt 00:00:09]} 38.
exf5 {[%clk 00:16:00]} {[%emt 00:00:04]} Kg7 {[%clk 00:10:40]} {[%emt
00:00:09]} 39. Kd3 {[%clk 00:16:04]} {[%emt 00:00:25]} Rf4 {[%clk 00:09:56]}
{[%emt 00:01:16]} 40. c4 {[%clk 00:15:49]} {[%emt 00:00:43]} Kf6 {[%clk
00:09:26]} {[%emt 00:01:01]} 41. c5 {[%clk 00:13:42]} {[%emt 00:02:37]} Rxf5
{[%clk 00:09:29]} {[%emt 00:00:27]} 42. Ke4 {[%clk 00:13:33]} {[%emt 00:00:37]}
Re5+ {[%clk 00:08:22]} {[%emt 00:01:40]} 43. Kd4 {[%clk 00:13:50]} {[%emt
00:00:11]} Re8 {[%clk 00:08:47]} {[%emt 00:00:06]} 44. Rf2+ {[%clk 00:13:05]}
{[%emt 00:01:14]} Ke7 {[%clk 00:09:16]} 45. Ra2 {[%clk 00:12:47]} {[%emt
00:00:50]} Ra8 {[%clk 00:09:10]} {[%emt 00:00:37]} 46. Ra6 {[%clk 00:12:44]}
{[%emt 00:00:31]} h5 {[%clk 00:09:28]} {[%emt 00:00:13]} 47. Ke5 {[%clk
00:12:57]} {[%emt 00:00:16]} 1-0

[Event "LASS Vårturneringar 2018"]
[Site "Linköping, Sweden"]
[Date "2018.05.11"]
[Round "4.6"]
[White "Knutsson, Håkan"]
[Black "Bernhard, Jonathan"]
[Result "0-1"]
[TimeControl "90 min + 30 sec/move + 30 min/40 moves"]
[WhiteElo "1865"]
[BlackElo "1926"]

1. e4 {[%clk 01:30:52]} {[%emt 00:00:06]} Nc6 {[%clk 01:29:48]} {[%emt
00:01:13]} 2. Nf3 {[%clk 01:31:08]} {[%emt 00:00:14]} e5 {[%clk 01:30:05]}
{[%emt 00:00:13]} 3. Bb5 {[%clk 01:31:26]} {[%emt 00:00:12]} f5 {[%clk
01:29:48]} {[%emt 00:00:48]} 4. Nc3 {[%clk 01:31:13]} {[%emt 00:00:42]} fxe4
{[%clk 01:30:03]} {[%emt 00:00:15]} 5. Nxe4 {[%clk 01:31:22]} {[%emt 00:00:21]}
Nf6 {[%clk 01:30:24]} {[%emt 00:00:09]} 6. d3 {[%clk 01:27:20]} {[%emt
00:04:32]} d5 {[%clk 01:30:08]} {[%emt 00:00:45]} 7. Ng3 {[%clk 01:19:57]}
{[%emt 00:07:53]} Bd6 {[%clk 01:26:35]} {[%emt 00:04:02]} 8. c4 {[%clk
01:17:27]} {[%emt 00:03:01]} O-O {[%clk 01:21:44]} {[%emt 00:05:21]} 9. Bg5
{[%clk 01:12:25]} {[%emt 00:05:32]} Bg4 {[%clk 01:10:01]} {[%emt 00:12:11]} 10.
h3 {[%clk 00:57:54]} {[%emt 00:15:03]} Bxf3 {[%clk 01:09:22]} {[%emt 00:01:09]}
11. Qxf3 {[%clk 00:57:11]} {[%emt 00:01:14]} Nd4 {[%clk 01:09:09]} {[%emt
00:00:42]} 12. Qd1 {[%clk 00:54:35]} {[%emt 00:03:06]} c6 {[%clk 01:08:39]}
{[%emt 00:01:01]} 13. Ba4 {[%clk 00:54:32]} {[%emt 00:00:33]} Qa5+ {[%clk
01:04:09]} {[%emt 00:04:59]} 14. Bd2 {[%clk 00:53:39]} {[%emt 00:01:23]} Bb4
{[%clk 01:04:28]} {[%emt 00:00:11]} 15. Bc2 {[%clk 00:47:45]} {[%emt 00:06:25]}
Bxd2+ {[%clk 01:03:54]} {[%emt 00:01:04]} 16. Kf1 {[%clk 00:46:22]} {[%emt
00:01:53]} 0-1

[Event "LASS Vårturneringar 2018"]
[Site "Linköping, Sweden"]
[Date "2018.05.11"]
[Round "4.7"]
[White "Alos, Raul Toledano"]
[Black "Larsson, Mille"]
[Result "1-0"]
[TimeControl "90 min + 30 sec/move + 30 min/40 moves"]
[WhiteElo "1772"]
[BlackElo "1374"]

1. e4 {[%clk 01:30:56]} {[%emt 00:00:03]} e6 {[%clk 01:29:49]} {[%emt
00:01:11]} 2. d4 {[%clk 01:31:18]} {[%emt 00:00:08]} d5 {[%clk 01:30:13]}
{[%emt 00:00:07]} 3. e5 {[%clk 01:31:33]} {[%emt 00:00:15]} c5 {[%clk
01:30:19]} {[%emt 00:00:23]} 4. c3 {[%clk 01:31:57]} {[%emt 00:00:06]} Nc6
{[%clk 01:29:57]} {[%emt 00:00:53]} 5. Nf3 {[%clk 01:32:22]} {[%emt 00:00:06]}
Qb6 {[%clk 01:30:09]} {[%emt 00:00:18]} 6. a3 {[%clk 01:32:43]} {[%emt
00:00:09]} Nge7 {[%clk 01:28:07]} {[%emt 00:02:32]} 7. Bd3 {[%clk 01:32:58]}
{[%emt 00:00:15]} Bd7 {[%clk 01:27:00]} {[%emt 00:01:36]} 8. Bc2 {[%clk
01:33:21]} {[%emt 00:00:07]} a5 {[%clk 01:24:11]} {[%emt 00:03:20]} 9. dxc5
{[%clk 01:31:42]} {[%emt 00:02:09]} Qc7 {[%clk 01:22:42]} {[%emt 00:01:59]} 10.
Bf4 {[%clk 01:28:32]} {[%emt 00:03:40]} Ng6 {[%clk 01:20:43]} {[%emt 00:02:29]}
11. Bxg6 {[%clk 01:28:18]} {[%emt 00:00:44]} fxg6 {[%clk 01:20:39]} {[%emt
00:00:35]} 12. Nbd2 {[%clk 01:27:04]} {[%emt 00:01:44]} Bxc5 {[%clk 01:15:49]}
{[%emt 00:05:19]} 13. b4 {[%clk 01:27:18]} {[%emt 00:00:15]} O-O {[%clk
01:05:50]} {[%emt 00:10:30]} 14. Bg3 {[%clk 01:27:23]} {[%emt 00:00:25]} Be7
{[%clk 01:03:30]} {[%emt 00:02:49]} 15. O-O {[%clk 01:27:16]} {[%emt 00:00:38]}
b5 {[%clk 00:45:33]} {[%emt 00:18:27]} 16. Nb3 {[%clk 01:24:48]} {[%emt
00:02:59]} Qb6 {[%clk 00:36:03]} {[%emt 00:10:00]} 17. Qd2 {[%clk 01:22:16]}
{[%emt 00:03:01]} a4 {[%clk 00:33:40]} {[%emt 00:02:53]} 18. Nbd4 {[%clk
01:21:32]} {[%emt 00:01:14]} Bd8 {[%clk 00:30:31]} {[%emt 00:03:40]} 19. Rfe1
{[%clk 01:17:37]} {[%emt 00:04:24]} Ne7 {[%clk 00:29:54]} {[%emt 00:01:07]} 20.
Bh4 {[%clk 01:16:05]} {[%emt 00:01:58]} Rc8 {[%clk 00:23:39]} {[%emt 00:06:49]}
21. Bxe7 {[%clk 01:13:26]} {[%emt 00:03:09]} Bxe7 {[%clk 00:23:35]} {[%emt
00:00:34]} 22. Ne2 {[%clk 01:13:38]} {[%emt 00:00:18]} Qc7 {[%clk 00:23:13]}
{[%emt 00:00:52]} 23. Rac1 {[%clk 01:13:21]} {[%emt 00:00:47]} Qc4 {[%clk
00:23:22]} {[%emt 00:00:21]} 24. Nfd4 {[%clk 01:12:43]} {[%emt 00:01:08]} h6
{[%clk 00:17:31]} {[%emt 00:06:21]} 25. Rf1 {[%clk 01:07:59]} {[%emt 00:05:14]}
Rf7 {[%clk 00:17:24]} {[%emt 00:00:37]} 26. Qc2 {[%clk 01:04:42]} {[%emt
00:03:47]} Kh7 {[%clk 00:16:25]} {[%emt 00:01:29]} 27. g3 {[%clk 01:03:18]}
{[%emt 00:01:54]} Rcf8 {[%clk 00:14:15]} {[%emt 00:02:40]} 28. h4 {[%clk
00:57:08]} {[%emt 00:06:39]} h5 {[%clk 00:14:30]} {[%emt 00:00:15]} 29. Qd2
{[%clk 00:57:27]} {[%emt 00:00:11]} Qc7 {[%clk 00:12:24]} {[%emt 00:02:36]} 30.
f4 {[%clk 00:57:05]} {[%emt 00:00:52]} Qd8 {[%clk 00:12:18]} {[%emt 00:00:36]}
31. Nf3 {[%clk 00:56:41]} {[%emt 00:00:54]} 1-0

[Event "LASS Vårturneringar 2018"]
[Site "Linköping, Sweden"]
[Date "2018.05.11"]
[Round "4.1"]
[White "Qwarfort, Fredrik"]
[Black "Johansson, Henrik"]
[Result "0-1"]
[TimeControl "90 min + 30 sec/move + 30 min/40 moves"]
[WhiteElo "1894"]
[BlackElo "1675"]

1. d4 {[%clk 01:30:57]} {[%emt 00:00:03]} g6 {[%clk 01:31:15]} {[%emt
00:00:14]} 2. c4 {[%clk 01:31:18]} {[%emt 00:00:09]} Bg7 {[%clk 01:31:29]}
{[%emt 00:00:15]} 3. Nf3 {[%clk 01:31:34]} {[%emt 00:00:15]} c5 {[%clk
01:31:31]} {[%emt 00:00:28]} 4. Nc3 {[%clk 01:30:41]} {[%emt 00:01:23]} cxd4
{[%clk 01:29:48]} {[%emt 00:02:12]} 5. Nxd4 {[%clk 01:31:06]} {[%emt 00:00:06]}
Nc6 {[%clk 01:29:44]} {[%emt 00:00:34]} 6. Nb3 {[%clk 01:28:46]} {[%emt
00:02:51]} Bxc3+ {[%clk 01:29:21]} {[%emt 00:00:52]} 7. bxc3 {[%clk 01:29:08]}
{[%emt 00:00:08]} Nf6 {[%clk 01:25:48]} {[%emt 00:04:03]} 8. Bh6 {[%clk
01:20:48]} {[%emt 00:08:51]} Rg8 {[%clk 01:18:55]} {[%emt 00:07:22]} 9. Bf4
{[%clk 01:12:11]} {[%emt 00:09:08]} d6 {[%clk 01:17:17]} {[%emt 00:02:08]} 10.
f3 {[%clk 01:08:49]} {[%emt 00:03:52]} Be6 {[%clk 01:15:02]} {[%emt 00:02:44]}
11. e4 {[%clk 01:08:33]} {[%emt 00:00:47]} Nh5 {[%clk 01:06:33]} {[%emt
00:08:58]} 12. Be3 {[%clk 01:07:49]} {[%emt 00:01:15]} Ne5 {[%clk 00:56:13]}
{[%emt 00:10:48]} 13. Nd4 {[%clk 01:04:25]} {[%emt 00:03:56]} Bd7 {[%clk
00:51:39]} {[%emt 00:05:03]} 14. Qb3 {[%clk 01:00:24]} {[%emt 00:04:31]} Qc7
{[%clk 00:47:17]} {[%emt 00:04:52]} 15. Nb5 {[%clk 00:56:38]} {[%emt 00:04:17]}
Bxb5 {[%clk 00:42:22]} {[%emt 00:05:24]} 16. cxb5 {[%clk 00:57:01]} {[%emt
00:00:08]} Rc8 {[%clk 00:41:25]} {[%emt 00:01:26]} 17. Rc1 {[%clk 00:56:54]}
{[%emt 00:00:37]} b6 {[%clk 00:37:14]} {[%emt 00:04:42]} 18. Kd2 {[%clk
00:51:23]} {[%emt 00:06:01]} Nc4+ {[%clk 00:36:26]} {[%emt 00:01:17]} 19. Bxc4
{[%clk 00:51:47]} {[%emt 00:00:08]} Qxc4 {[%clk 00:36:23]} {[%emt 00:00:32]} 20.
Qxc4 {[%clk 00:48:19]} {[%emt 00:03:59]} Rxc4 {[%clk 00:36:14]} {[%emt
00:00:38]} 21. Kd3 {[%clk 00:48:40]} {[%emt 00:00:09]} Ra4 {[%clk 00:35:44]}
{[%emt 00:01:00]} 22. Rc2 {[%clk 00:45:19]} {[%emt 00:03:52]} Kd7 {[%clk
00:35:26]} {[%emt 00:00:47]} 23. Bd2 {[%clk 00:40:32]} {[%emt 00:05:17]} f5
{[%clk 00:30:21]} {[%emt 00:05:36]} 24. exf5 {[%clk 00:37:39]} {[%emt
00:03:23]} gxf5 {[%clk 00:29:50]} {[%emt 00:01:00]} 25. g3 {[%clk 00:37:55]}
{[%emt 00:00:15]} Nf6 {[%clk 00:28:50]} {[%emt 00:01:29]} 26. c4 {[%clk
00:35:44]} {[%emt 00:02:42]} Rc8 {[%clk 00:28:09]} {[%emt 00:01:10]} 27. Rhc1
{[%clk 00:32:50]} {[%emt 00:03:24]} e5 {[%clk 00:26:36]} {[%emt 00:02:03]} 28.
Bg5 {[%clk 00:24:42]} {[%emt 00:08:38]} Ne8 {[%clk 00:22:54]} {[%emt 00:04:11]}
29. Bd2 {[%clk 00:21:33]} {[%emt 00:03:41]} Nf6 {[%clk 00:21:38]} {[%emt
00:01:45]} 30. Rb2 {[%clk 00:12:44]} {[%emt 00:09:20]} Ra3+ {[%clk 00:16:41]}
{[%emt 00:05:26]} 31. Rc3 {[%clk 00:13:11]} {[%emt 00:00:04]} Ra4 {[%clk
00:15:16]} {[%emt 00:01:55]} 32. Rc1 {[%clk 00:13:28]} {[%emt 00:00:13]} Ra3+
{[%clk 00:15:32]} {[%emt 00:00:14]} 33. Rc3 {[%clk 00:13:55]} {[%emt 00:00:03]}
Ra4 {[%clk 00:15:50]} {[%emt 00:00:11]} 34. Rcc2 {[%clk 00:14:24]} {[%emt
00:00:02]} Ra3+ {[%clk 00:15:36]} {[%emt 00:00:44]} 35. Ke2 {[%clk 00:12:25]}
{[%emt 00:02:28]} e4 {[%clk 00:12:17]} {[%emt 00:03:49]} 36. fxe4 {[%clk
00:12:49]} {[%emt 00:00:06]} fxe4 {[%clk 00:10:19]} {[%emt 00:02:28]} 37. Bf4
{[%clk 00:09:52]} {[%emt 00:03:28]} Ke6 {[%clk 00:06:13]} {[%emt 00:04:36]} 38.
Rb3 {[%clk 00:02:47]} {[%emt 00:07:35]} Rxb3 {[%clk 00:05:57]} {[%emt
00:00:46]} 39. axb3 {[%clk 00:03:16]} {[%emt 00:00:01]} Nh5 {[%clk 00:04:06]}
{[%emt 00:02:20]} 40. Bd2 {[%clk 00:02:19]} {[%emt 00:01:27]} Kf5 {[%clk
00:03:54]} {[%emt 00:00:42]} 41. Ke3 {[%clk 00:01:39]} {[%emt 00:01:10]} d5
{[%clk 00:03:10]} {[%emt 00:01:14]} 42. Kd4 {[%clk 00:27:23]} {[%emt 00:04:46]}
dxc4 {[%clk 00:33:15]} {[%emt 00:00:25]} 43. bxc4 {[%clk 00:27:51]} {[%emt
00:00:02]} Rd8+ {[%clk 00:32:08]} {[%emt 00:01:37]} 44. Ke3 {[%clk 00:28:16]}
{[%emt 00:00:05]} Rd3+ {[%clk 00:30:43]} {[%emt 00:01:55]} 45. Ke2 {[%clk
00:28:43]} {[%emt 00:00:03]} Kg4 {[%clk 00:30:04]} {[%emt 00:01:08]} 46. Ra2
{[%clk 00:27:53]} {[%emt 00:01:20]} Kh3 {[%clk 00:27:57]} {[%emt 00:02:36]} 47.
Rxa7 {[%clk 00:28:03]} {[%emt 00:00:21]} Nf6 {[%clk 00:27:46]} {[%emt
00:00:39]} 48. Rf7 {[%clk 00:25:06]} {[%emt 00:03:27]} Rf3 {[%clk 00:26:46]}
{[%emt 00:01:29]} 49. Bf4 {[%clk 00:24:03]} {[%emt 00:01:35]} Ng4 {[%clk
00:26:31]} {[%emt 00:00:44]} 50. Rxh7 {[%clk 00:23:00]} {[%emt 00:01:34]} Kg2
{[%clk 00:26:54]} {[%emt 00:00:06]} 51. h4 {[%clk 00:16:28]} {[%emt 00:07:03]}
Rf2+ {[%clk 00:25:59]} {[%emt 00:01:24]} 52. Ke1 {[%clk 00:16:34]} {[%emt
00:00:24]} Rf1+ {[%clk 00:20:02]} {[%emt 00:06:28]} 53. Kd2 {[%clk 00:16:58]}
{[%emt 00:00:06]} Rf2+ {[%clk 00:19:59]} {[%emt 00:00:32]} 54. Kc3 {[%clk
00:10:46]} {[%emt 00:06:43]} e3 {[%clk 00:20:14]} {[%emt 00:00:15]} 55. Re7
{[%clk 00:10:36]} {[%emt 00:00:40]} e2 {[%clk 00:19:33]} {[%emt 00:00:41]} 56.
Kd3 {[%clk 00:10:42]} {[%emt 00:00:25]} Kf1 {[%clk 00:18:40]} {[%emt 00:01:51]}
57. Bd2 {[%clk 00:11:06]} {[%emt 00:00:06]} Rf3+ {[%clk 00:17:39]} {[%emt
00:01:31]} 58. Kd4 {[%clk 00:08:52]} {[%emt 00:02:46]} Nf2 {[%clk 00:17:01]}
{[%emt 00:01:07]} 59. Re3 {[%clk 00:06:50]} {[%emt 00:02:33]} Rf8 {[%clk
00:16:34]} {[%emt 00:00:55]} 60. Re6 {[%clk 00:02:29]} {[%emt 00:04:52]} Rd8+
{[%clk 00:14:55]} {[%emt 00:02:08]} 61. Kc3 {[%clk 00:02:57]} {[%emt 00:00:03]}
Rd3+ {[%clk 00:14:26]} {[%emt 00:00:58]} 62. Kc2 {[%clk 00:03:23]} {[%emt
00:00:06]} Rxg3 {[%clk 00:13:42]} {[%emt 00:01:13]} 63. h5 {[%clk 00:02:33]}
{[%emt 00:01:21]} Rg4 {[%clk 00:13:27]} {[%emt 00:00:44]} 64. Kb3 {[%clk
00:02:14]} {[%emt 00:00:50]} Ne4 {[%clk 00:12:24]} {[%emt 00:01:32]} 65. Bb4
{[%clk 00:02:16]} {[%emt 00:00:30]} e1=Q {[%clk 00:10:52]} {[%emt 00:02:00]} 66.
Bxe1 {[%clk 00:02:44]} {[%emt 00:00:03]} Nc5+ {[%clk 00:11:09]} {[%emt
00:00:13]} 67. Kb4 {[%clk 00:00:43]} {[%emt 00:02:31]} Nxe6 {[%clk 00:11:00]}
{[%emt 00:00:38]} 68. Bd2 {[%clk 00:00:43]} {[%emt 00:00:31]} Rh4 {[%clk
00:10:42]} {[%emt 00:00:47]} 69. Be3 {[%clk 00:00:49]} {[%emt 00:00:25]} Nd4
{[%clk 00:08:32]} {[%emt 00:02:39]} 70. Bxd4 {[%clk 00:00:35]} {[%emt
00:00:46]} Rxd4 {[%clk 00:08:49]} {[%emt 00:00:11]} 71. h6 {[%clk 00:00:42]}
{[%emt 00:00:23]} Rh4 {[%clk 00:09:06]} {[%emt 00:00:12]} 72. h7 {[%clk
00:00:49]} {[%emt 00:00:24]} Ke2 {[%clk 00:09:19]} {[%emt 00:00:16]} 73. Kc3
{[%clk 00:01:03]} {[%emt 00:00:17]} Rxh7 {[%clk 00:08:24]} {[%emt 00:01:25]} 74.
c5 {[%clk 00:01:32]} {[%emt 00:00:02]} Rc7 {[%clk 00:08:19]} {[%emt 00:00:34]}
75. c6 {[%clk 00:01:41]} {[%emt 00:00:21]} Ke3 {[%clk 00:08:30]} {[%emt
00:00:19]} 76. Kd4+ {[%emt 00:00:32]} 0-1